Cogmind - Beta 16.1 @@@ ROGUE MODE // 2026.03.01 @ 17:05:25 Player: Krysmphoenix Result: Destroyed by Triborg with Siege Cannon Performance ------------- Evolutions (0) 0 Regions Visited (3) 600 Robots Destroyed (11) 55 Value Destroyed (123) 123 Prototype IDs (0) 0 Alien Tech Used (0) 0 Bonus (137) 137 TOTAL SCORE: 915 Bonus ------- Registered with UFD 300 Friendly Fire -163 Cogmind --------- Core Integrity 0/250 Matter 300/300 Energy 150/150 System Corruption 0% Temperature Cool (0) Movement Treading (160) Location -9/Scraptown Parts ------- > --- POWER (1) -------- Light Angular Momentum Engine > --- PROPULSION (2) --- Light Treads Light Treads > --- UTILITY (2) ------ Advanced Targeting Computer > --- WEAPON (2) ------- Beamcaster Battle Rifle > --- INVENTORY (5) ---- Improved Targeting Computer Subdweller Machine Gun Subdweller Machine Gun Proton Missile Launcher Peak State ------------ > --- POWER ------------ Light Angular Momentum Engine > --- PROPULSION ------- Light Treads Light Treads > --- UTILITY ---------- Improved Heat Sink Advanced Targeting Computer > --- WEAPON ----------- Beamcaster Battle Rifle > --- INVENTORY -------- Improved Heat Sink Subdweller Machine Gun Subdweller Machine Gun Proton Missile Launcher [Rating: 21] Favorites ----------- Power Light Angular Momentum Engine Engine Light Angular Momentum Engine Propulsion Light Treads Treads Light Treads Wheel Compact Wheel Utility Improved Heat Sink Device Improved Heat Sink Storage Small Storage Unit Processor Advanced Targeting Computer Protection Scrap Shield Weapon Beamcaster Energy Gun Beamcaster Ballistic Gun Battle Rifle Ballistic Cannon Light Cannon Launcher Grenade Launcher Build | -11 -10 -10 -9 ------- Run | Yrd Mat Sub Scr Slots Evolved . | . . . . Power . | . . . . Propulsion . | . . . . Utility . | . . . . Weapon . | . . . . Parts Attached 21 | 8 2 10 1 Power 3 | 1 . 2 . Engine 3 | 1 . 2 . Core . | . . . . Reactor . | . . . . Propulsion 4 | 4 . . . Treads 2 | 2 . . . Leg . | . . . . Wheel 2 | 2 . . . Hover . | . . . . Flight . | . . . . Utility 7 | 1 1 4 1 Device 3 | . . 3 . Storage 2 | 1 1 . . Processor 1 | . . . 1 Hackware . | . . . . Protection 1 | . . 1 . Artifact . | . . . . Weapon 7 | 2 1 4 . Energy Gun 2 | 1 . 1 . Energy Cannon . | . . . . Ballistic Gun 3 | 1 . 2 . Ballistic Cannon 1 | . 1 . . Launcher 1 | . . 1 . Special Weapon . | . . . . Impact Weapon . | . . . . Slashing Weapon . | . . . . Piercing Weapon . | . . . . Special Melee Weapon . | . . . . Unidentified Prototypes . | . . . . Parts Lost 3 | . . 2 1 Power . | . . . . Propulsion . | . . . . Utility 2 | . . 1 1 Weapon 1 | . . 1 . Highest Loss Streak 2 | . . 2 1 To Critical Strikes . | . . . . Average Backups 4 | 2 5 4 4 Power 1 | . 1 2 . Propulsion . | . . . . Utility . | . 1 . . Weapon 2 | 1 3 2 2 Tool/Special . | . . . . Unused Backups 10 | . . 2 8 Power 1 | . . . 1 Propulsion . | . . . . Utility 2 | . . . 2 Weapon 7 | . . 2 5 Tool/Special . | . . . . Average Slot Usage (%) 95 | . 89 87 99 Engine 14 | . 14 14 14 Treads 28 | . 28 28 28 Device 16 | . . 13 18 Storage 1 | . 17 . . Processor 5 | . . . 8 Energy Gun 12 | . 5 10 14 Ballistic Gun 13 | . 14 12 14 Ballistic Cannon 1 | . 8 4 . Peak Build Rating 21 | 6 7 20 21 Average Rating 16 | 5 6 15 20 On Entrance 8 | . 6 7 20 Avg Prop Armor Cover (%) . | . . . . Naked Turns . | . . . . Heaviest Build 27 | 13 17 27 18 Greatest Support 40 | 40 40 40 40 Greatest Overweight (x) . | . . . . Average Overweight (x) . | . . . . Largest Inventory Capacity 8 | 8 8 8 5 Average Capacity 5 | 7 8 5 5 Most Carried 8 | 4 7 8 5 Average Carried 4 | 2 5 4 4 Final Capacity 8 | 8 8 5 5 Final Carried 6 | 4 6 5 4 Class Distribution -------------------- 73% | Mutant 26% | Scavenger-Mutant Dominant Class ---------------- Mutant | -10/Materials Mutant | -10/Subcaves Mutant | -9/Scraptown Resources | -11 -10 -10 -9 ----------- Run | Yrd Mat Sub Scr Matter Collected 485 | 302 . 173 10 Remotely . | . . . . Salvage Created 355 | 239 . 116 . Parts 22 | 16 . 6 . Haulers Intercepted . | . . . . Recyclers Shooed . | . . . . Parts Field Recycled . | . . . . Retrieved Matter . | . . . . Parts Self-Destructed 4 | . . 4 . Prevented . | . . . . Parts Restored . | . . . . Kills | -11 -10 -10 -9 ------- Run | Yrd Mat Sub Scr Combat Hostiles Destroyed 2 | . . 2 . AOE 2 | . . 2 . Classes Destroyed 5 | 3 . 2 . Worker 2 | 2 . . . Tunneler 5 | 5 . . . Recycler 1 | 1 . . . Subdweller 2 | . . 2 . Thug 1 | . . 1 . Best Kill Streak 4 | 4 . 2 . Combat Bots Only 2 | . . 2 . Max Kills in Single Turn 2 | 1 . 2 . Gunslinging . | . . . . Exploded 2 | . . 2 . Melee . | . . . . Uniques/NPCs Destroyed . | . . . . Combat | -11 -10 -10 -9 -------- Run | Yrd Mat Sub Scr Hostile Shots Fired 44 | . . 25 19 Missed 13 | . . 10 3 Hits 31 | . . 15 16 Projectile 31 | . . 15 16 Critical Strikes 1 | . . . 1 Damage Taken 826 | . . 298 528 Core 299 | . . 46 253 Absorbed by Shields . | . . . . Core Remaining (%) 100 | 100 . . . Volleys Fired 31 | 22 . 8 1 Largest 2 | 2 . 2 1 Hottest 100 | 70 . 100 75 Shots Fired 61 | 44 . 16 1 Gun 55 | 44 . 10 1 Cannon 5 | . . 5 . Launcher 1 | . . 1 . Special . | . . . . Kinetic 34 | 22 . 12 . Thermal 26 | 22 . 3 1 Explosive 1 | . . 1 . Electromagnetic . | . . . . Robot Hit Streak 11 | 11 . 6 . Robot Miss Streak 4 | 4 . 2 . Penetration Max . | . . . . Secondary Targets . | . . . . Shots Hit Robots 40 | 28 . 12 . Core Hits 18 | 11 . 7 . Critical Kills . | . . . . Critical Parts Destroyed . | . . . . Critical Strikes 3 | 3 . . . Burn 3 | 3 . . . Melee Attacks . | . . . . Impact . | . . . . Slashing . | . . . . Piercing . | . . . . Sneak Attacks . | . . . . Combat Hostiles . | . . . . Follow-up Attacks . | . . . . Damage Inflicted 713 | 294 . 419 . Guns 411 | 294 . 117 . Cannons 100 | . . 100 . Explosions 202 | . . 202 . Melee . | . . . . Ramming . | . . . . Kinetic 261 | 106 . 155 . Thermal 250 | 188 . 62 . Explosive 202 | . . 202 . Electromagnetic . | . . . . Impact . | . . . . Slashing . | . . . . Piercing . | . . . . Highest Corruption . | . . . . Average Corruption . | . . . . Corruption Purged . | . . . . Corruption Blocked . | . . . . Overload Shots . | . . . . Overflow Damage . | . . . . Projectiles . | . . . . Explosions . | . . . . Melee . | . . . . Knockbacks 3 | . . 3 . Impact . | . . . . Kinetic 3 | . . 3 . Secondary . | . . . . Self-Inflicted Damage . | . . . . Shots . | . . . . Rammed . | . . . . Targets Rammed . | . . . . Kicked . | . . . . Crushed . | . . . . Highest Temperature 120 | 120 . . 10 Average Temperature 46 | 47 . . 7 Received Heat Transfer 24 | . . 24 . Siege Activations . | . . . . Martial Activations . | . . . . Shielding Activations . | . . . . Robots Disrupted . | . . . . Combat Hostiles . | . . . . Robots Corrupted . | . . . . Combat Hostiles . | . . . . Parts Fried . | . . . . Impact Corruptions . | . . . . Robots Melted . | . . . . Combat Hostiles . | . . . . Parts Melted 1 | 1 . . . Heat Transferred 888 | 777 . 111 . Parts Sabotaged . | . . . . Parts Stolen . | . . . . Parts Stripped . | . . . . Power Chain Reactions . | . . . . Alert | -11 -10 -10 -9 ------- Run | Yrd Mat Sub Scr Maximum Alert Level . | . . . . Low Security (%) 100 | 100 100 . . Level 1 . | . . . . Level 2 . | . . . . Level 3 . | . . . . Level 4 . | . . . . Level 5 . | . . . . High Security . | . . . . Max Security . | . . . . Peak Influence 15 | 15 . . . Initial . | . . . . Average . | 1 . . . Influence Increases 55 | 40 . 15 . Destroy 0b10 Robot/NC 40 | 40 . . . Lose Combat Pursuer 15 | . . 15 . Influence Decreases 55 | 40 . 15 . Time Decay 55 | 40 . 15 . Squads Dispatched . | . . . . Investigation . | . . . . Extermination . | . . . . Reinforcement . | . . . . Assault . | . . . . Garrison . | . . . . Intercept . | . . . . Searches Triggered . | . . . . Construction Impeded . | . . . . Haulers Reinforced . | . . . . Active Scanning Responses . | . . . . Cargo Convoy Interrupts . | . . . . Stealth | -11 -10 -10 -9 --------- Run | Yrd Mat Sub Scr Distress Signals . | . . . . Communications Jammed . | . . . . Distress Signals . | . . . . Times Spotted 15 | . . 12 3 Peak Tracking Total 7 | . . 7 4 Tactical Retreats 1 | . . 1 . Traps | -11 -10 -10 -9 ------- Run | Yrd Mat Sub Scr Traps Triggered . | . . . . Indirectly . | . . . . Trap Hack Attempts . | . . . . Triggered . | . . . . Disarmed . | . . . . Reprogrammed . | . . . . Reused . | . . . . Traps Extracted . | . . . . Installed . | . . . . Triggered . | . . . . Machines | -11 -10 -10 -9 ---------- Run | Yrd Mat Sub Scr Machines Disabled 1 | . . . 1 Max in Single Turn 1 | . . . 1 Machines Repaired . | . . . . Machines Dismantled . | . . . . Machines Sabotaged . | . . . . Overloaded Fab Kills . | . . . . Hacking | -11 -10 -10 -9 --------- Run | Yrd Mat Sub Scr Machines Accessed 3 | . . 1 2 Terminals . | . . . . Fabricators . | . . . . Repair Stations . | . . . . Recycling Units . | . . . . Scanalyzers . | . . . . Garrison Access . | . . . . Total Hacks 23 | . . 4 19 Successful 23 | . . 4 19 Failed . | . . . . Catastrophic . | . . . . Database Lockouts . | . . . . Manual . | . . . . Terminals . | . . . . Fabricators . | . . . . Repair Stations . | . . . . Recycling Units . | . . . . Scanalyzers . | . . . . Garrison Access . | . . . . Terminal Hacks 23 | . . 4 19 Record 23 | . . 4 19 Fabricator Hacks . | . . . . Repair Station Hacks . | . . . . Recycling Unit Hacks . | . . . . Scanalyzer . | . . . . Garrison Access Hacks . | . . . . Unauthorized Hacks . | . . . . Terminals . | . . . . Fabricators . | . . . . Repair Stations . | . . . . Recycling Units . | . . . . Scanalyzers . | . . . . Garrison Access . | . . . . Data Cores Recovered . | . . . . Used . | . . . . Hacking Detections . | . . . . Full Trace Events . | . . . . Feedback Events . | . . . . Feedback Blocked . | . . . . Robot Schematics Acquired . | . . . . Robots Built . | . . . . Authchips . | . . . . Time . | . . . . Total Robot Build Rating . | . . . . Part Schematics Acquired . | . . . . Parts Built . | . . . . Authchips . | . . . . Time . | . . . . Total Part Build Rating . | . . . . Part Studies Acquired . | . . . . Parts Repaired . | . . . . Time . | . . . . Parts Recycled . | . . . . Recycled Matter . | . . . . Retrieved Matter . | . . . . Retrieved Components . | . . . . Parts Scanalyzed . | . . . . Part Schematics Acquired . | . . . . Parts Damaged . | . . . . Bothacking | -11 -10 -10 -9 ------------ Run | Yrd Mat Sub Scr Used RIF Installer . | . . . . Robots Hacked . | . . . . Non-combat . | . . . . Combat . | . . . . Robot Hacks Applied . | . . . . Relay Couplers Released . | . . . . Fabnet Peak Effective % . | . . . . Robots Rewired . | . . . . Allies Hacked . | . . . . Hacks Repelled . | . . . . Allies | -11 -10 -10 -9 -------- Run | Yrd Mat Sub Scr Total Allies . | . . . . Largest Group . | . . . . Highest-Rated Group . | . . . . Highest-Rated Ally . | . . . . Total Orders . | . . . . Ally Attacks . | . . . . Total Damage . | . . . . Kills . | . . . . Allies Corrupted . | . . . . Allies Melted . | . . . . Intel | -11 -10 -10 -9 ------- Run | Yrd Mat Sub Scr Active Infowar (turns) . | . . . . Robot Analysis Total . | . . . . Derelict Logs Recovered 2 | . . 2 . Drone Launches . | . . . . Drone Recoveries . | . . . . Exploration | -11 -10 -10 -9 ------------- Run | Yrd Mat Sub Scr Turns Passed 2514 | 299 144 655 1416 Spaces Moved 1438 | 142 85 341 870 Core 9 | 9 . . . Treads 1427 | 131 85 341 870 Legs . | . . . . Wheels 2 | 2 . . . Hover . | . . . . Flight . | . . . . Fastest Speed 50 | 50 160 160 160 Average Speed 159 | 152 160 160 160 Slowest Speed 160 | 160 160 160 160 Overloaded Moves . | . . . . Propulsion Burnouts . | . . . . Robots Hopped . | . . . . Potential Cave-ins . | . . . . Cave-ins Triggered . | . . . . Exploration Rate (%) 27 | 6 16 35 54 Regions Visited 3 Branch Regions 2 Pre-discovered Areas 1 | . . 1 . Known Exits Taken . | . . . . Unknown Exits Taken 3 | 1 1 1 . Scrap Searched 3 | . . . 3 Spaces Dug . | . . . . Terrain Destroyed 5 | . . 5 . Melee . | . . . . Projectile . | . . . . AOE 5 | . . 5 . Terrain Rammed . | . . . . Walls Destroyed . | . . . . Machines Disabled . | . . . . Actions | -11 -10 -10 -9 --------- Run | Yrd Mat Sub Scr Total 1613 | 185 93 438 897 Wait 63 | . 4 51 8 Move 1435 | 141 84 340 870 Hop . | . . . . Pick Up 37 | 12 3 14 8 Fast Attach . | . . . . Attach 11 | 6 1 4 . Detach . | . . . . Swap 12 | 2 1 8 1 Drop 24 | 2 . 13 9 Fire 31 | 22 . 8 1 Melee . | . . . . Ram . | . . . . Kick . | . . . . Crush . | . . . . Escape Stasis . | . . . . Rewire . | . . . . Trap . | . . . . Miscellaneous . | . . . . Route ------- -11/Scrapyard -10/Materials (discovered 2 exits: [*Min] / *Sub) -10/Subcaves (discovered 4 exits: *Mat x2 / Rec / *Scr) -9/Scraptown (discovered 1 exit: [*Fac]) History --------- Turn | Location | Event 10 | -11/Scrapyard | Discovered new exit (range 15) 300 | -11/Scrapyard | Entered Materials 301 | -10/Materials | Build established: Mutant 340 | -10/Materials | Discovered new exit (range 6) 435 | -10/Materials | Discovered new exit (range 7) 444 | -10/Materials | Entered Subcaves 445 | -10/Subcaves | Approached by a straggling Scientist 550 | -10/Subcaves | Learned Materials security intel 552 | -10/Subcaves | Ambushed by swarm of Subdwellers 683 | -10/Subcaves | Visited Clippyterm 690 | -10/Subcaves | Identified exit to Recycling 690 | -10/Subcaves | Identified exit to Materials 690 | -10/Subcaves | Learned location of Extension (-5) 730 | -10/Subcaves | Learned location of 1 exit from Materials 1018 | -10/Subcaves | A swath of the cavern ceiling suddenly collapsed 1097 | -10/Subcaves | Scientist uncovered a shortcut to Scraptown 1099 | -10/Subcaves | Entered Scraptown 1220 | -9/Scraptown | Build established: Scavenger-Mutant 1333 | -9/Scraptown | Visited Cyclists 1387 | -9/Scraptown | Visited Assassins FH 1444 | -9/Scraptown | Visited UFD Registry 1444 | -9/Scraptown | Registered with UFD as "Novahacker" 1894 | -9/Scraptown | Heard Great Nut preacher, LISTEN AND RECITE! 1895 | -9/Scraptown | Build established: Mutant 2122 | -9/Scraptown | Discovered new exit (range 7) 2501 | -9/Scraptown | Attacked by Scraptown defenders 2508 | -9/Scraptown | Core integrity fell below 50% 2512 | -9/Scraptown | Core integrity fell below 20% 2515 | -9/Scraptown | Destroyed by Triborg with Siege Cannon Last Messages --------------- 02501_ Machine disabled. 02501_ ANNOUNCEMENT: Intruder alert! Defend Scraptown! 02503_ Triborg activates siege mode. 02503_ Penetrated by Siege Slug. 02503_ Imp. Heat Sink destroyed. 02503_ Siege Slug penetrates Machine. 02503_ Supplies damaged. 02504_ Bolt penetrates Wall. 02505_ 4Y-JHW(h): "And where do you think you're going?" 02505_ Siege Slug penetrates Wall. 02507_ Penetrated by Siege Slug. 02507_ Siege Slug penetrates Supplies. 02507_ Supplies damaged. 02509_ Siege Slug penetrates Wall. 02510_ Bolt penetrates Supplies. 02511_ Penetrated by Siege Slug. 02511_ Siege Slug penetrates Supplies. 02513_ Penetrated by Siege Slug. Map ----- +----------------------------------------------------+ | ????# #???????????????# #???????" | | ????# #???????????????# ###?#???" | | ????# #?? ????????????# ""#"#???" | | ????# #?? ##??????????# """"#???" | | ##### #?" ??????????# ""#?????#" | | "X" # #?" """????????# ###?????#" | | # #?" """"" ?????# #########" | | # ##" """""??????# | | # ##" ??????# | | # ## ???????# | | # #? ?????????# | | # #### ############ | | # T | | | | """ # E | | ##### | | ##### | | #""""#" | | % #????#" | | #????#""""" | | ############ ############;;h### ####????###### | | #??# #??#"""" "## #????????????? | | #??# #??# ## #????????????? | | #??#" "#??#" ## #????????????? | | #??#" "#??#" % " " ## #????????????? | | #??#" "#??# @ "" ## #????????????? | | #??##""""""""""##??# " % ## #????????????? | | #???#" "#???# %" ## #????????????? | | #???## ##???# ""## #????????????? | | #????# #????###;######## #????????????? | | #????##########??????##???????# #????????????? | | #?????????????????????????????# #????????????? | | #??????????????????############ #????????????? | | #??????????????????#""""""""""" #????????????? | | #??????????????????#""""" """"" #????????????? | | ##???????????#######"""" " "" #????????????? | | #???????????# #????????????? | | ##???###??#### #####"" "" "" " #????????????? | | ##???"""""?#""" "#??#""""""""""" #????????????? | | ##????"" ""?#""" "#??#""""""""""" #????????????? | | ###??#"" "##""" "#??############ #????????????? | | ""#??#" ""##"" "#?############# #????????????? | | "#??#"" ""##"" "#?#"""""""""""# #????????????? | | "#??#"" ""##"| "#?#"" ! = ! "# #????????????? | | ""#??#"" ""##"| "#?#"" ! !!! "# #????????????? | | ###??#" ""##"" "#?#"" * "# #????????????? | | ######"" ""##"" ""###"""*"""""""# #????????????? | | [ #????????????? | | #????????????? | | """" """""######""" """##""" """#####????????????? | +----------------------------------------------------+ Best States ------------- Heat Dissipation 53 Coolant Potential 50 Energy Generation 18 Energy Capacity 450 Matter Stores 300 Matter Capacity 300 Sight Range 16 Terrain Scan Density 10 Armor Coverage 800 Evasion (%) 40 Targeting Accuracy 8 Recoil Reduction 2 Item Schematics ----------------- None Robot Schematics ------------------ None Fabricated ------------ Nothing Repaired ---------- Nothing Studied --------- None Alien Tech Used ----------------- None Achievements -------------- Backstab Civilization 2243 Nice Directions, Buddy Challenges ------------ None Game ------ Seed FlakShadingKinecellerator Manual? 0 Play Time 00:24:47 Cumulative 13.7 hours Start 2026.03.01 @ 16:38:40 End 2026.03.01 @ 17:05:25 Sessions 1 Manual Loads 0 Difficulty Rogue Special Mode None Game No. 25 Rogue 22 Adventurer 3 Explorer 0 Win Type - Total 1 Types 1/0/0/0/0/0/0/0/0/0 Lore% 14 Gallery% 16 Achievement% 19 Wizard Run 0 Options --------- Layout 1 ASCII 0 Keyboard 0 Movement Numpad Keybinds 0 Fullscreen 2 Font 24/Proggy Map View 50x35 Zoom Use 0% Tactical HUD 1 Map Filters NONE Filters NONE Steam 1 RUN: e4bfe7ef-046b-445b-8aa5-6d04b9ed6266